[Event "Titled Tuesday Blitz August 1 Late 2023"]
[White "Zhang, Derek"]
[Black "Bjelobrk, Igor"]
[WhiteFideId "2087871"]
[BlackFideId "4300726"]
[WhiteElo "2527"]
[BlackElo "2678"]
[Result "0-1"]
[Round "11"]
[TimeControl "180+1"]
[Date "2023.08.01"]
[WhiteClock "0:00:03"]
[BlackClock "0:01:07"]
[Board "33"]

1. Nf3 {[%clk 0:03:00]}  c5 {[%clk 0:02:56]} 2. c4 {[%clk 0:03:00]}  g6 {[%clk 0:02:53]} 3. Nc3 {[%clk 0:03:00]}  Bg7 {[%clk 0:02:51]} 4. e3 {[%clk 0:03:00]}  Nf6 {[%clk 0:02:34]} 5. d4 {[%clk 0:02:58]}  d6 {[%clk 0:02:34]} 6. d5 {[%clk 0:02:43]}  O-O {[%clk 0:02:33]} 7. e4 {[%clk 0:02:43]}  e6 {[%clk 0:02:30]} 8. Bd3 {[%clk 0:02:43]}  exd5 {[%clk 0:02:30]} 9. exd5 {[%clk 0:02:44]}  Re8+ {[%clk 0:02:29]} 10. Be3 {[%clk 0:02:44]}  Ng4 {[%clk 0:02:29]} 11. O-O {[%clk 0:02:42]}  Nxe3 {[%clk 0:02:29]} 12. fxe3 {[%clk 0:02:43]}  Rxe3 {[%clk 0:02:28]} 13. Qd2 {[%clk 0:02:44]}  Re7 {[%clk 0:02:14]} 14. Ng5 {[%clk 0:02:31]}  Nd7 {[%clk 0:02:13]} 15. Nce4 {[%clk 0:01:52]}  Ne5 {[%clk 0:02:08]} 16. Rae1 {[%clk 0:01:43]}  f5 {[%clk 0:02:04]} 17. Nc3 {[%clk 0:01:33]}  Nxd3 {[%clk 0:01:50]} 18. Qxd3 {[%clk 0:01:33]}  Rxe1 {[%clk 0:01:49]} 19. Rxe1 {[%clk 0:01:24]}  Qxg5 {[%clk 0:01:49]} 20. Nb5 {[%clk 0:01:10]}  Qd8 {[%clk 0:01:46]} 21. Qg3 {[%clk 0:00:52]}  Be5 {[%clk 0:01:43]} 22. Rxe5 {[%clk 0:00:51]}  dxe5 {[%clk 0:01:44]} 23. Qxe5 {[%clk 0:00:51]}  Bd7 {[%clk 0:01:44]} 24. Nd6 {[%clk 0:00:30]}  Qf8 {[%clk 0:01:43]} 25. Nxb7 {[%clk 0:00:27]}  Re8 {[%clk 0:01:38]} 26. Qc7 {[%clk 0:00:26]}  Qe7 {[%clk 0:01:36]} 27. h3 {[%clk 0:00:24]}  Qe1+ {[%clk 0:01:26]} 28. Kh2 {[%clk 0:00:24]}  Qe5+ {[%clk 0:01:27]} 29. Qxe5 {[%clk 0:00:24]}  Rxe5 {[%clk 0:01:27]} 30. Nxc5 {[%clk 0:00:25]}  Bc8 {[%clk 0:01:27]} 31. b4 {[%clk 0:00:20]}  Kf8 {[%clk 0:01:24]} 32. a3 {[%clk 0:00:17]}  Ke7 {[%clk 0:01:23]} 33. Nd3 {[%clk 0:00:16]}  Re3 {[%clk 0:01:23]} 34. Nf4 {[%clk 0:00:13]}  g5 {[%clk 0:01:20]} 35. Nh5 {[%clk 0:00:11]}  f4 {[%clk 0:01:18]} 36. c5 {[%clk 0:00:10]}  Rxa3 {[%clk 0:01:17]} 37. d6+ {[%clk 0:00:09]}  Kf7 {[%clk 0:01:14]} 38. c6 {[%clk 0:00:08]}  Rd3 {[%clk 0:01:13]} 39. d7 {[%clk 0:00:08]}  Bxd7 {[%clk 0:01:14]} 40. cxd7 {[%clk 0:00:09]}  Rxd7 {[%clk 0:01:14]} 41. h4 {[%clk 0:00:10]}  h6 {[%clk 0:01:13]} 42. Kh3 {[%clk 0:00:09]}  Rd2 {[%clk 0:01:08]} 43. hxg5 {[%clk 0:00:07]}  hxg5 {[%clk 0:01:08]} 44. b5 {[%clk 0:00:08]}  Kg6 {[%clk 0:01:07]} 45. g4 {[%clk 0:00:07]}  Rd3+ {[%clk 0:01:07]} 46. Kg2 {[%clk 0:00:03]}  Rb3 {[%clk 0:01:07]} 0-1


[Site "https://www.chess.com"]

[Event "Titled Tuesday Blitz August 1 Late 2023"]
[White "Adewumi, Tanitoluwa"]
[Black "Bettalli, Francesco"]
[WhiteFideId "30966396"]
[BlackFideId "2816453"]
[WhiteElo "2654"]
[BlackElo "2526"]
[Result "0-1"]
[Round "11"]
[TimeControl "180+1"]
[Date "2023.08.01"]
[WhiteClock "0:00:00"]
[BlackClock "0:01:17"]
[Board "34"]

1. e4 {[%clk 0:03:00]}  e5 {[%clk 0:02:59]} 2. Nf3 {[%clk 0:03:00]}  Nf6 {[%clk 0:03:00]} 3. Nc3 {[%clk 0:02:56]}  Bc5 {[%clk 0:02:59]} 4. Nxe5 {[%clk 0:02:53]}  Nc6 {[%clk 0:03:00]} 5. Nxc6 {[%clk 0:02:50]}  dxc6 {[%clk 0:03:01]} 6. Be2 {[%clk 0:02:41]}  h5 {[%clk 0:03:00]} 7. h3 {[%clk 0:02:39]}  Qd4 {[%clk 0:03:00]} 8. O-O {[%clk 0:02:32]}  Ng4 {[%clk 0:03:01]} 9. hxg4 {[%clk 0:02:02]}  hxg4 {[%clk 0:03:02]} 10. g3 {[%clk 0:02:02]}  Qe5 {[%clk 0:03:02]} 11. Kg2 {[%clk 0:02:02]}  Bxf2 {[%clk 0:03:02]} 12. Kxf2 {[%clk 0:01:37]}  Rh2+ {[%clk 0:03:01]} 13. Ke3 {[%clk 0:01:37]}  Qxg3+ {[%clk 0:03:02]} 14. Bf3 {[%clk 0:01:33]}  Be6 {[%clk 0:02:16]} 15. Qe1 {[%clk 0:01:13]}  Qh3 {[%clk 0:02:11]} 16. Ne2 {[%clk 0:00:32]}  gxf3 {[%clk 0:02:08]} 17. Rxf3 {[%clk 0:00:28]}  Qh6+ {[%clk 0:02:07]} 18. Nf4 {[%clk 0:00:25]}  Bg4 {[%clk 0:02:05]} 19. Rg3 {[%clk 0:00:22]}  Re2+ {[%clk 0:01:49]} 20. Qxe2 {[%clk 0:00:22]}  Bxe2 {[%clk 0:01:50]} 21. Rh3 {[%clk 0:00:23]}  Qg5 {[%clk 0:01:44]} 22. Rh8+ {[%clk 0:00:21]}  Kd7 {[%clk 0:01:35]} 23. Rxa8 {[%clk 0:00:21]}  Bh5 {[%clk 0:01:32]} 24. d3 {[%clk 0:00:20]}  Qg3+ {[%clk 0:01:17]} 25. Kd4 {[%clk 0:00:16]}  Qf2+ {[%clk 0:01:18]} 26. Kc3 {[%clk 0:00:00]}  Bd1 {[%clk 0:01:17]} 0-1


[Site "https://www.chess.com"]

[Event "Titled Tuesday Blitz August 1 Late 2023"]
[White "Przybylski, Wojciech"]
[Black "Grossboss19"]
[WhiteFideId "1117599"]
[WhiteElo "2638"]
[BlackElo "2515"]
[Result "0-1"]
[Round "11"]
[TimeControl "180+1"]
[Date "2023.08.01"]
[WhiteClock "0:00:03"]
[BlackClock "0:00:03"]
[Board "35"]

1. d4 {[%clk 0:03:00]}  d5 {[%clk 0:02:53]} 2. c4 {[%clk 0:03:00]}  e6 {[%clk 0:02:50]} 3. Nf3 {[%clk 0:02:59]}  Nf6 {[%clk 0:02:49]} 4. Nc3 {[%clk 0:02:58]}  c6 {[%clk 0:02:44]} 5. e3 {[%clk 0:02:53]}  Bd6 {[%clk 0:02:43]} 6. b3 {[%clk 0:02:53]}  Nbd7 {[%clk 0:02:42]} 7. Bb2 {[%clk 0:02:52]}  O-O {[%clk 0:02:42]} 8. Bd3 {[%clk 0:02:50]}  dxc4 {[%clk 0:02:41]} 9. bxc4 {[%clk 0:02:49]}  e5 {[%clk 0:02:42]} 10. O-O {[%clk 0:02:46]}  Re8 {[%clk 0:02:41]} 11. Qc2 {[%clk 0:02:46]}  h6 {[%clk 0:02:40]} 12. Ne4 {[%clk 0:02:40]}  Nxe4 {[%clk 0:02:39]} 13. Bxe4 {[%clk 0:02:40]}  Qc7 {[%clk 0:02:18]} 14. h3 {[%clk 0:02:36]}  c5 {[%clk 0:02:01]} 15. d5 {[%clk 0:02:26]}  Nf6 {[%clk 0:01:59]} 16. Bf5 {[%clk 0:02:15]}  e4 {[%clk 0:01:53]} 17. Bxc8 {[%clk 0:02:13]}  exf3 {[%clk 0:01:51]} 18. Bf5 {[%clk 0:02:12]}  fxg2 {[%clk 0:01:50]} 19. Kxg2 {[%clk 0:02:12]}  Be5 {[%clk 0:01:50]} 20. Rad1 {[%clk 0:02:04]}  Rad8 {[%clk 0:01:44]} 21. Bc1 {[%clk 0:02:00]}  Qe7 {[%clk 0:01:33]} 22. f4 {[%clk 0:01:53]}  Bc7 {[%clk 0:01:32]} 23. Rde1 {[%clk 0:01:47]}  Ne4 {[%clk 0:01:23]} 24. Bb2 {[%clk 0:01:47]}  Ba5 {[%clk 0:01:14]} 25. Re2 {[%clk 0:01:45]}  g6 {[%clk 0:01:10]} 26. Bxe4 {[%clk 0:01:30]}  Qxe4+ {[%clk 0:01:08]} 27. Qxe4 {[%clk 0:01:30]}  Rxe4 {[%clk 0:01:09]} 28. Rc1 {[%clk 0:01:29]}  Rde8 {[%clk 0:01:03]} 29. Be5 {[%clk 0:01:23]}  f5 {[%clk 0:00:43]} 30. d6 {[%clk 0:01:20]}  Rd8 {[%clk 0:00:40]} 31. Kf3 {[%clk 0:01:16]}  Kf7 {[%clk 0:00:39]} 32. Rb2 {[%clk 0:01:14]}  Bb6 {[%clk 0:00:31]} 33. Rbc2 {[%clk 0:01:09]}  Rd7 {[%clk 0:00:31]} 34. Rg1 {[%clk 0:01:08]}  Bd8 {[%clk 0:00:29]} 35. Rd1 {[%clk 0:01:04]}  Bf6 {[%clk 0:00:27]} 36. Bxf6 {[%clk 0:00:36]}  Kxf6 {[%clk 0:00:27]} 37. Rd5 {[%clk 0:00:35]}  b6 {[%clk 0:00:27]} 38. a3 {[%clk 0:00:31]}  Ke6 {[%clk 0:00:26]} 39. Rg2 {[%clk 0:00:30]}  Kf7 {[%clk 0:00:23]} 40. Rc2 {[%clk 0:00:29]}  Re6 {[%clk 0:00:22]} 41. Rcd2 {[%clk 0:00:28]}  Re4 {[%clk 0:00:20]} 42. Rc2 {[%clk 0:00:28]}  Kf6 {[%clk 0:00:20]} 43. h4 {[%clk 0:00:27]}  h5 {[%clk 0:00:18]} 44. Rd1 {[%clk 0:00:24]}  Ke6 {[%clk 0:00:16]} 45. Rg2 {[%clk 0:00:19]}  Kf7 {[%clk 0:00:16]} 46. Rc2 {[%clk 0:00:19]}  Re6 {[%clk 0:00:15]} 47. Rcd2 {[%clk 0:00:19]}  Ke8 {[%clk 0:00:15]} 48. a4 {[%clk 0:00:12]}  Rb7 {[%clk 0:00:15]} 49. d7+ {[%clk 0:00:07]}  Kd8 {[%clk 0:00:15]} 50. Rd6 {[%clk 0:00:08]}  Rxd6 {[%clk 0:00:14]} 51. Rxd6 {[%clk 0:00:08]}  Rxd7 {[%clk 0:00:12]} 52. Rxg6 {[%clk 0:00:08]}  Rd3 {[%clk 0:00:12]} 53. Rg5 {[%clk 0:00:07]}  Ra3 {[%clk 0:00:11]} 54. Rxh5 {[%clk 0:00:07]}  Rxa4 {[%clk 0:00:12]} 55. Rxf5 {[%clk 0:00:08]}  Rxc4 {[%clk 0:00:13]} 56. h5 {[%clk 0:00:08]}  Rc1 {[%clk 0:00:11]} 57. Rf7 {[%clk 0:00:05]}  Rh1 {[%clk 0:00:11]} 58. Kg4 {[%clk 0:00:05]}  c4 {[%clk 0:00:08]} 59. Rxa7 {[%clk 0:00:02]}  c3 {[%clk 0:00:09]} 60. Ra3 {[%clk 0:00:02]}  c2 {[%clk 0:00:05]} 61. Rc3 {[%clk 0:00:02]}  Rh2 {[%clk 0:00:05]} 62. h6 {[%clk 0:00:02]}  b5 {[%clk 0:00:03]} 63. Kg5 {[%clk 0:00:02]}  b4 {[%clk 0:00:02]} 64. Rc5 {[%clk 0:00:02]}  b3 {[%clk 0:00:03]} 65. Kg6 {[%clk 0:00:02]}  b2 {[%clk 0:00:02]} 66. h7 {[%clk 0:00:02]}  Rxh7 {[%clk 0:00:01]} 67. Rxc2 {[%clk 0:00:02]}  b1=Q {[%clk 0:00:01]} 68. f5 {[%clk 0:00:01]}  Qxc2 {[%clk 0:00:01]} 69. e4 {[%clk 0:00:01]}  Qxe4 {[%clk 0:00:02]} 70. Kf6 {[%clk 0:00:01]}  Rf7+ {[%clk 0:00:02]} 71. Kg6 {[%clk 0:00:02]}  Qxf5+ {[%clk 0:00:03]} 72. Kh6 {[%clk 0:00:03]}  Rh7# {[%clk 0:00:03]} 0-1


[Site "https://www.chess.com"]

[Event "Titled Tuesday Blitz August 1 Late 2023"]
[White "Willy, Stephen"]
[Black "Karaoglan, Doruk"]
[WhiteFideId "30981468"]
[BlackFideId "6390927"]
[WhiteElo "2505"]
[BlackElo "2635"]
[Result "1-0"]
[Round "11"]
[TimeControl "180+1"]
[Date "2023.08.01"]
[WhiteClock "0:00:53"]
[BlackClock "0:00:00"]
[Board "36"]

1. e4 {[%clk 0:03:00]}  c5 {[%clk 0:03:00]} 2. Nc3 {[%clk 0:02:59]}  d6 {[%clk 0:03:00]} 3. d4 {[%clk 0:02:59]}  cxd4 {[%clk 0:03:00]} 4. Qxd4 {[%clk 0:03:00]}  Nc6 {[%clk 0:03:01]} 5. Qe3 {[%clk 0:02:59]}  g6 {[%clk 0:03:00]} 6. Bc4 {[%clk 0:02:59]}  Bg7 {[%clk 0:02:56]} 7. Nge2 {[%clk 0:02:59]}  Nf6 {[%clk 0:02:55]} 8. h4 {[%clk 0:02:56]}  O-O {[%clk 0:02:55]} 9. f3 {[%clk 0:02:52]}  e6 {[%clk 0:02:42]} 10. Qf2 {[%clk 0:02:32]}  d5 {[%clk 0:02:42]} 11. exd5 {[%clk 0:02:28]}  exd5 {[%clk 0:02:42]} 12. Bb3 {[%clk 0:02:28]}  d4 {[%clk 0:01:24]} 13. Ne4 {[%clk 0:02:22]}  d3 {[%clk 0:00:58]} 14. cxd3 {[%clk 0:01:51]}  Nb4 {[%clk 0:00:58]} 15. Nf4 {[%clk 0:01:40]}  Nh5 {[%clk 0:00:46]} 16. O-O {[%clk 0:01:20]}  Nxf4 {[%clk 0:00:45]} 17. Bxf4 {[%clk 0:01:21]}  Nxd3 {[%clk 0:00:45]} 18. Qd2 {[%clk 0:01:20]}  Qxh4 {[%clk 0:00:30]} 19. g3 {[%clk 0:01:01]}  Qd8 {[%clk 0:00:13]} 20. Rad1 {[%clk 0:00:57]}  Qb6+ {[%clk 0:00:00]} 21. Be3 {[%clk 0:00:53]} 1-0


[Site "https://www.chess.com"]

[Event "Titled Tuesday Blitz August 1 Late 2023"]
[White "Liu, Casper"]
[Black "Fishbein, Alexander"]
[WhiteFideId "1454153"]
[BlackFideId "2000377"]
[WhiteElo "2499"]
[BlackElo "2624"]
[Result "0-1"]
[Round "11"]
[TimeControl "180+1"]
[Date "2023.08.01"]
[WhiteClock "0:00:39"]
[BlackClock "0:00:44"]
[Board "38"]

1. e4 {[%clk 0:02:57]}  c5 {[%clk 0:02:59]} 2. d4 {[%clk 0:02:56]}  cxd4 {[%clk 0:02:58]} 3. Qxd4 {[%clk 0:02:57]}  Nc6 {[%clk 0:02:58]} 4. Qe3 {[%clk 0:02:57]}  Nf6 {[%clk 0:02:52]} 5. Nc3 {[%clk 0:02:58]}  d5 {[%clk 0:02:51]} 6. exd5 {[%clk 0:02:58]}  Nxd5 {[%clk 0:02:49]} 7. Nxd5 {[%clk 0:02:59]}  Qxd5 {[%clk 0:02:49]} 8. Qb3 {[%clk 0:03:00]}  Qxb3 {[%clk 0:02:43]} 9. axb3 {[%clk 0:03:01]}  Bf5 {[%clk 0:02:41]} 10. c3 {[%clk 0:03:00]}  a6 {[%clk 0:02:26]} 11. Bb5 {[%clk 0:02:58]}  Rc8 {[%clk 0:02:20]} 12. Be2 {[%clk 0:02:47]}  e5 {[%clk 0:02:16]} 13. Nf3 {[%clk 0:02:45]}  e4 {[%clk 0:02:11]} 14. Nd2 {[%clk 0:02:44]}  Bc5 {[%clk 0:02:07]} 15. Nc4 {[%clk 0:02:42]}  O-O {[%clk 0:02:00]} 16. Be3 {[%clk 0:02:38]}  Bxe3 {[%clk 0:01:59]} 17. Nxe3 {[%clk 0:02:39]}  Be6 {[%clk 0:01:58]} 18. b4 {[%clk 0:02:38]}  f5 {[%clk 0:01:57]} 19. Bc4 {[%clk 0:02:33]}  Bxc4 {[%clk 0:01:52]} 20. Nxc4 {[%clk 0:02:34]}  Nxb4 {[%clk 0:01:51]} 21. cxb4 {[%clk 0:02:09]}  Rxc4 {[%clk 0:01:49]} 22. b5 {[%clk 0:02:10]}  axb5 {[%clk 0:01:45]} 23. O-O {[%clk 0:02:08]}  Rc2 {[%clk 0:01:43]} 24. b4 {[%clk 0:02:05]}  Rd8 {[%clk 0:01:41]} 25. Ra5 {[%clk 0:02:03]}  Rdd2 {[%clk 0:01:36]} 26. Rxb5 {[%clk 0:02:03]}  e3 {[%clk 0:01:36]} 27. Re5 {[%clk 0:01:50]}  f4 {[%clk 0:01:07]} 28. h4 {[%clk 0:01:31]}  Rxf2 {[%clk 0:01:05]} 29. Rxf2 {[%clk 0:01:26]}  Rxf2 {[%clk 0:01:05]} 30. Re7 {[%clk 0:01:21]}  Rb2 {[%clk 0:01:01]} 31. Kh2 {[%clk 0:01:02]}  Rxb4 {[%clk 0:00:58]} 32. Kh3 {[%clk 0:01:02]}  Kf8 {[%clk 0:00:56]} 33. Re5 {[%clk 0:01:02]}  Kf7 {[%clk 0:00:55]} 34. Kg4 {[%clk 0:01:02]}  Kf6 {[%clk 0:00:47]} 35. Re8 {[%clk 0:01:01]}  h5+ {[%clk 0:00:45]} 36. Kxh5 {[%clk 0:00:58]}  Kf5 {[%clk 0:00:44]} 37. Re7 {[%clk 0:00:50]}  g6+ {[%clk 0:00:44]} 38. Kh6 {[%clk 0:00:49]}  Kg4 {[%clk 0:00:44]} 39. Kxg6 {[%clk 0:00:48]}  Kxh4 {[%clk 0:00:44]} 40. Kf5 {[%clk 0:00:43]}  Kg3 {[%clk 0:00:44]} 41. Rg7+ {[%clk 0:00:39]}  Kf2 {[%clk 0:00:44]} 0-1


[Site "https://www.chess.com"]

[Event "Titled Tuesday Blitz August 1 Late 2023"]
[White "Sivakumar, Shaaketh"]
[Black "Wu, Rochelle"]
[WhiteFideId "30940176"]
[BlackFideId "30908132"]
[WhiteElo "2497"]
[BlackElo "2620"]
[Result "1-0"]
[Round "11"]
[TimeControl "180+1"]
[Date "2023.08.01"]
[WhiteClock "0:00:10"]
[BlackClock "0:00:09"]
[Board "39"]

1. d4 {[%clk 0:03:00]}  d5 {[%clk 0:02:58]} 2. c4 {[%clk 0:03:00]}  c6 {[%clk 0:02:59]} 3. Nf3 {[%clk 0:03:00]}  Nf6 {[%clk 0:02:59]} 4. e3 {[%clk 0:03:00]}  a6 {[%clk 0:02:58]} 5. Nc3 {[%clk 0:02:56]}  Bf5 {[%clk 0:02:58]} 6. a4 {[%clk 0:02:54]}  e6 {[%clk 0:02:56]} 7. Qb3 {[%clk 0:02:53]}  Qc8 {[%clk 0:02:54]} 8. Nh4 {[%clk 0:02:43]}  Be4 {[%clk 0:02:52]} 9. c5 {[%clk 0:02:43]}  h6 {[%clk 0:02:48]} 10. Nxe4 {[%clk 0:02:41]}  dxe4 {[%clk 0:02:47]} 11. g3 {[%clk 0:02:38]}  Nbd7 {[%clk 0:02:44]} 12. a5 {[%clk 0:02:36]}  Nd5 {[%clk 0:02:40]} 13. Be2 {[%clk 0:02:30]}  e5 {[%clk 0:02:31]} 14. O-O {[%clk 0:02:25]}  Be7 {[%clk 0:02:16]} 15. Nf5 {[%clk 0:02:24]}  Bf8 {[%clk 0:02:12]} 16. Bc4 {[%clk 0:02:18]}  exd4 {[%clk 0:02:09]} 17. Bxd5 {[%clk 0:02:13]}  cxd5 {[%clk 0:02:08]} 18. Qxd5 {[%clk 0:02:14]}  Nxc5 {[%clk 0:02:00]} 19. exd4 {[%clk 0:02:09]}  Qe6 {[%clk 0:01:54]} 20. Nxg7+ {[%clk 0:02:00]}  Bxg7 {[%clk 0:01:52]} 21. Qxc5 {[%clk 0:02:01]}  Rc8 {[%clk 0:01:52]} 22. Qb4 {[%clk 0:01:56]}  Qd5 {[%clk 0:01:47]} 23. Be3 {[%clk 0:01:43]}  Rc4 {[%clk 0:01:46]} 24. Qb3 {[%clk 0:01:39]}  O-O {[%clk 0:01:43]} 25. Ra4 {[%clk 0:01:28]}  Rfc8 {[%clk 0:01:41]} 26. Kg2 {[%clk 0:01:27]}  Qe6 {[%clk 0:00:50]} 27. Rxc4 {[%clk 0:01:23]}  Rxc4 {[%clk 0:00:50]} 28. Qxb7 {[%clk 0:00:44]}  Bxd4 {[%clk 0:00:48]} 29. Qb8+ {[%clk 0:00:31]}  Kh7 {[%clk 0:00:41]} 30. Qf4 {[%clk 0:00:30]}  Bxb2 {[%clk 0:00:32]} 31. Rd1 {[%clk 0:00:29]}  Be5 {[%clk 0:00:30]} 32. Qh4 {[%clk 0:00:26]}  Bg7 {[%clk 0:00:26]} 33. Qh5 {[%clk 0:00:20]}  Ra4 {[%clk 0:00:20]} 34. Bf4 {[%clk 0:00:19]}  Ra2 {[%clk 0:00:18]} 35. Rd6 {[%clk 0:00:18]}  Qe7 {[%clk 0:00:13]} 36. Bxh6 {[%clk 0:00:14]}  Kg8 {[%clk 0:00:10]} 37. Qg4 {[%clk 0:00:11]}  Qe5 {[%clk 0:00:08]} 38. Bxg7 {[%clk 0:00:09]}  Qxg7 {[%clk 0:00:09]} 39. Rd8+ {[%clk 0:00:09]}  Kh7 {[%clk 0:00:10]} 40. Qh5+ {[%clk 0:00:09]}  Qh6 {[%clk 0:00:09]} 41. Qxf7+ {[%clk 0:00:09]}  Qg7 {[%clk 0:00:09]} 42. Qh5+ {[%clk 0:00:10]}  Qh6 {[%clk 0:00:09]} 43. Rd7+ {[%clk 0:00:10]} 1-0


[Site "https://www.chess.com"]

[Event "Titled Tuesday Blitz August 1 Late 2023"]
[White "Gaal, Zsoka"]
[Black "brm72"]
[WhiteFideId "777765"]
[WhiteElo "2482"]
[BlackElo "2615"]
[Result "0-1"]
[Round "11"]
[TimeControl "180+1"]
[Date "2023.08.01"]
[WhiteClock "0:00:02"]
[BlackClock "0:00:23"]
[Board "40"]

1. Nf3 {[%clk 0:03:00]}  c5 {[%clk 0:02:56]} 2. c4 {[%clk 0:03:00]}  Nc6 {[%clk 0:02:56]} 3. g3 {[%clk 0:03:01]}  g6 {[%clk 0:02:56]} 4. Bg2 {[%clk 0:03:01]}  Bg7 {[%clk 0:02:57]} 5. Nc3 {[%clk 0:03:01]}  e5 {[%clk 0:02:57]} 6. O-O {[%clk 0:03:02]}  d6 {[%clk 0:02:57]} 7. a3 {[%clk 0:02:59]}  a5 {[%clk 0:02:57]} 8. Ne1 {[%clk 0:02:55]}  Be6 {[%clk 0:02:55]} 9. d3 {[%clk 0:02:56]}  Nge7 {[%clk 0:02:55]} 10. Nc2 {[%clk 0:02:56]}  d5 {[%clk 0:02:55]} 11. cxd5 {[%clk 0:02:57]}  Nxd5 {[%clk 0:02:55]} 12. Ne3 {[%clk 0:02:57]}  Nb6 {[%clk 0:02:55]} 13. Bxc6+ {[%clk 0:02:47]}  bxc6 {[%clk 0:02:56]} 14. Ne4 {[%clk 0:02:47]}  Qe7 {[%clk 0:02:51]} 15. Qc2 {[%clk 0:02:47]}  c4 {[%clk 0:02:49]} 16. dxc4 {[%clk 0:02:43]}  O-O {[%clk 0:02:50]} 17. c5 {[%clk 0:02:30]}  Nc8 {[%clk 0:02:29]} 18. Rd1 {[%clk 0:02:25]}  a4 {[%clk 0:02:29]} 19. Bd2 {[%clk 0:02:21]}  Bb3 {[%clk 0:02:29]} 20. Qc1 {[%clk 0:02:11]}  Bxd1 {[%clk 0:02:28]} 21. Qxd1 {[%clk 0:02:11]}  Na7 {[%clk 0:02:29]} 22. Bb4 {[%clk 0:02:11]}  Nb5 {[%clk 0:02:28]} 23. Nd6 {[%clk 0:02:10]}  Nd4 {[%clk 0:02:25]} 24. Nec4 {[%clk 0:02:06]}  e4 {[%clk 0:02:13]} 25. Nb6 {[%clk 0:02:06]}  Rad8 {[%clk 0:02:05]} 26. Nxa4 {[%clk 0:02:05]}  h5 {[%clk 0:02:04]} 27. Nc3 {[%clk 0:02:05]}  f5 {[%clk 0:02:01]} 28. a4 {[%clk 0:02:00]}  h4 {[%clk 0:02:00]} 29. a5 {[%clk 0:01:59]}  e3 {[%clk 0:01:58]} 30. f3 {[%clk 0:01:58]}  hxg3 {[%clk 0:01:56]} 31. hxg3 {[%clk 0:01:59]}  f4 {[%clk 0:01:45]} 32. Kg2 {[%clk 0:01:34]}  Be5 {[%clk 0:01:34]} 33. Qh1 {[%clk 0:01:05]}  Kg7 {[%clk 0:01:32]} 34. Qh4 {[%clk 0:01:05]}  Qe6 {[%clk 0:00:55]} 35. a6 {[%clk 0:00:33]}  Rh8 {[%clk 0:00:54]} 36. Qg4 {[%clk 0:00:33]}  Qxg4 {[%clk 0:00:53]} 37. fxg4 {[%clk 0:00:34]}  fxg3 {[%clk 0:00:54]} 38. a7 {[%clk 0:00:28]}  Nc2 {[%clk 0:00:47]} 39. Ra4 {[%clk 0:00:23]}  Rh2+ {[%clk 0:00:35]} 40. Kg1 {[%clk 0:00:22]}  Rdh8 {[%clk 0:00:34]} 41. Nd1 {[%clk 0:00:07]}  Rh1+ {[%clk 0:00:31]} 42. Kg2 {[%clk 0:00:07]}  Nd4 {[%clk 0:00:24]} 43. Nf5+ {[%clk 0:00:03]}  gxf5 {[%clk 0:00:24]} 44. Nxe3 {[%clk 0:00:02]}  R8h2# {[%clk 0:00:23]} 0-1


[Site "https://www.chess.com"]

[Event "Titled Tuesday Blitz August 1 Late 2023"]
[White "Reprintsev, Alexander"]
[Black "Vlassov, Nikolai"]
[WhiteFideId "14100541"]
[BlackFideId "4103360"]
[WhiteElo "2464"]
[BlackElo "2582"]
[Result "0-1"]
[Round "11"]
[TimeControl "180+1"]
[Date "2023.08.01"]
[WhiteClock "0:00:43"]
[BlackClock "0:00:13"]
[Board "41"]

1. e4 {[%clk 0:02:28]}  c5 {[%clk 0:02:39]} 2. b3 {[%clk 0:02:28]}  Nf6 {[%clk 0:02:36]} 3. e5 {[%clk 0:02:27]}  Nd5 {[%clk 0:02:36]} 4. Nc3 {[%clk 0:02:27]}  e6 {[%clk 0:02:33]} 5. Bb2 {[%clk 0:02:25]}  Nc6 {[%clk 0:02:32]} 6. Ne4 {[%clk 0:02:24]}  Qc7 {[%clk 0:02:23]} 7. c4 {[%clk 0:02:16]}  Nf4 {[%clk 0:01:52]} 8. g3 {[%clk 0:02:14]}  Ng6 {[%clk 0:01:52]} 9. f4 {[%clk 0:02:15]}  b6 {[%clk 0:01:44]} 10. Bg2 {[%clk 0:02:14]}  Bb7 {[%clk 0:01:44]} 11. Nf3 {[%clk 0:02:11]}  Nb4 {[%clk 0:01:38]} 12. Qb1 {[%clk 0:02:08]}  O-O-O {[%clk 0:01:24]} 13. a3 {[%clk 0:02:08]}  Nc6 {[%clk 0:01:24]} 14. O-O {[%clk 0:02:08]}  Be7 {[%clk 0:01:22]} 15. Bc3 {[%clk 0:02:06]}  a5 {[%clk 0:01:13]} 16. b4 {[%clk 0:02:02]}  cxb4 {[%clk 0:01:13]} 17. axb4 {[%clk 0:02:03]}  Nxb4 {[%clk 0:01:13]} 18. Nd6+ {[%clk 0:01:53]}  Bxd6 {[%clk 0:01:12]} 19. exd6 {[%clk 0:01:54]}  Qxd6 {[%clk 0:01:13]} 20. Bxg7 {[%clk 0:01:54]}  Rhg8 {[%clk 0:01:10]} 21. Bf6 {[%clk 0:01:53]}  Rde8 {[%clk 0:01:08]} 22. Bc3 {[%clk 0:01:52]}  Nxf4 {[%clk 0:00:56]} 23. Be5 {[%clk 0:01:44]}  Ne2+ {[%clk 0:00:37]} 24. Kh1 {[%clk 0:01:44]}  Qd3 {[%clk 0:00:24]} 25. Rf2 {[%clk 0:01:31]}  d6 {[%clk 0:00:19]} 26. Qxd3 {[%clk 0:01:20]}  Nxd3 {[%clk 0:00:19]} 27. Rxe2 {[%clk 0:01:21]}  dxe5 {[%clk 0:00:17]} 28. Nxe5 {[%clk 0:01:20]}  Bxg2+ {[%clk 0:00:16]} 29. Kxg2 {[%clk 0:01:16]}  Nf4+ {[%clk 0:00:16]} 30. Kf3 {[%clk 0:01:16]}  Nxe2 {[%clk 0:00:17]} 31. Kxe2 {[%clk 0:01:17]}  f6 {[%clk 0:00:13]} 32. Nf3 {[%clk 0:01:11]}  e5 {[%clk 0:00:13]} 33. Rb1 {[%clk 0:01:10]}  Kc7 {[%clk 0:00:13]} 34. Rb5 {[%clk 0:01:09]}  a4 {[%clk 0:00:13]} 35. c5 {[%clk 0:01:09]}  bxc5 {[%clk 0:00:13]} 36. Rxc5+ {[%clk 0:01:09]}  Kb6 {[%clk 0:00:13]} 37. Rc4 {[%clk 0:01:07]}  a3 {[%clk 0:00:13]} 38. Rb4+ {[%clk 0:01:06]}  Kc5 {[%clk 0:00:13]} 39. Rb1 {[%clk 0:01:05]}  a2 {[%clk 0:00:12]} 40. Ra1 {[%clk 0:01:05]}  Ra8 {[%clk 0:00:13]} 41. Ne1 {[%clk 0:01:02]}  Rgb8 {[%clk 0:00:12]} 42. Nd3+ {[%clk 0:01:02]}  Kd4 {[%clk 0:00:12]} 43. Nc1 {[%clk 0:00:56]}  Rb2 {[%clk 0:00:12]} 44. g4 {[%clk 0:00:54]}  e4 {[%clk 0:00:13]} 45. h4 {[%clk 0:00:43]}  e3 {[%clk 0:00:13]} 0-1


[Site "https://www.chess.com"]